bitfinex/quotes_ETHUSD_20241116
["timestamp","ask_amount","ask_price","bid_price","bid_amount"]
[1731794611688,3.17266,3152.0,3151.7,0.1]
[1731794611861,3.92268,3152.2,3151.7,0.1]
[1731794612574,0.7502,3152.2,3151.7,0.1]
[1731794612788,3.17251,3152.1,3151.7,0.1]
[1731794614703,3.882014,3152.1,3151.7,0.1]
[1731794614877,3.17275,3151.9,3151.7,0.1]
[1731794615766,3.17279,3151.8,3151.7,0.1]
[1731794616198,3.93515,3152.0,3151.7,0.1]
[1731794616393,0.7625,3152.0,3151.7,0.1]
[1731794616555,3.17277,3151.9,3151.7,0.1]
[1731794618392,3.88355,3151.9,3151.7,0.1]
[1731794619149,7.05632,3151.9,3151.7,0.1]
[1731794619433,5.81067078,3151.8,3151.7,0.1]
[1731794624947,3.17264,3152.0,3151.7,0.1]
[1731794625231,3.17271,3151.9,3151.7,0.1]
[1731794625470,3.568274,3151.9,3151.7,0.1]
[1731794625606,3.17271,3151.9,3151.7,0.1]
[1731794625805,0.783,3152.1,3151.7,0.1]
[1731794626245,3.17259,3152.0,3151.7,0.1]
[1731794628585,3.17269,3151.9,3151.7,0.1]
[1731794629938,3.17259,3152.0,3151.7,0.1]
[1731794630137,3.69866708,3151.9,3151.7,0.1]
[1731794630901,3.17279,3151.8,3151.7,0.1]
[1731794632298,0.52591708,3151.9,3151.7,0.1]
[1731794633814,0.783,3152.1,3151.7,0.1]
[1731794633954,3.1724,3152.2,3151.7,0.8871]
[1731794634162,0.7668,3152.4,3151.7,0.8871]
[1731794634375,3.1721,3152.5,3151.9,3.17262]
[1731794634553,3.75769739,3152.5,3151.9,3.17262]
[1731794635713,0.55,3152.4,3151.9,3.17262]
[1731794635914,3.72218,3152.4,3152.0,0.7871]
[1731794641877,0.55,3152.4,3152.0,0.7871]
[1731794642080,1.24841191,3152.4,3152.0,0.7871]
[1731794642384,0.61349309,3152.7,3152.2,3.1723]
[1731794642705,0.55,3152.8,3152.4,3.17217]
[1731794643267,0.55,3152.8,3152.3,0.7923]
[1731794643468,0.55,3152.8,3152.3,3.96457]
[1731794644009,0.55,3152.8,3152.4,0.49626946]
[1731794644325,4.04001848,3152.8,3152.4,0.49626946]
[1731794644663,0.55,3152.9,3152.4,3.66835946]
[1731794644916,0.55,3152.9,3152.5,0.7592]
[1731794645802,0.55,3152.9,3152.5,3.93127]
[1731794645999,0.55,3152.9,3152.5,0.7592]
[1731794646510,3.72169,3152.9,3152.5,0.7592]
[1731794646680,4.62272308,3152.9,3152.5,0.7592]
[1731794647988,1.45103308,3152.9,3152.5,0.7592]
[1731794648183,0.55,3153.0,3152.5,3.93127]
[1731794648388,7.11574,3153.4,3152.6,3.17198]
[1731794648617,3.17138,3153.2,3152.7,0.7592]
[1731794650186,3.17138,3153.2,3152.8,3.17175]
[1731794650187,0.55,3153.2,3152.8,3.17175]
[1731794650512,0.55,3153.3,3152.8,3.17175]
[1731794650669,0.55,3153.3,3152.9,0.7592]
[1731794651678,4.47472078,3153.5,3152.9,3.93085]
[1731794652022,3.72124,3153.4,3152.9,0.7592]
[1731794658168,3.17142,3153.2,3152.9,0.7592]
[1731794658312,3.1713,3153.3,3152.9,0.7592]
[1731794658857,6.34268,3153.3,3152.9,0.7592]
[1731794659040,3.1713,3153.3,3152.9,0.7592]
[1731794659443,3.17138,3153.2,3152.9,0.7592]
[1731794659909,4.61817208,3153.4,3152.9,0.7592]
[1731794660109,3.17135,3153.3,3152.9,0.7592]
[1731794660866,1.44691208,3153.4,3152.9,0.7592]
[1731794661030,0.55,3153.4,3152.9,0.7592]
[1731794661764,3.17128,3153.3,3152.9,0.7592]
[1731794662423,3.17141,3153.2,3152.9,0.7592]
[1731794674088,1.30358078,3153.5,3152.9,0.7592]
[1731794674296,3.17124,3153.4,3152.9,0.7592]
[1731794677480,3.17124,3153.4,3152.9,3.93085]
[1731794677648,3.93582208,3153.4,3152.9,3.93085]
[1731794680496,0.76458208,3153.4,3152.9,3.93085]
[1731794680994,3.93576208,3153.4,3152.9,3.93085]
[1731794682093,3.171,3153.6,3152.9,3.93085]
[1731794682298,3.171,3153.6,3153.2,0.8328]
[1731794686199,4.47472078,3153.5,3153.2,0.8328]
[1731794688025,3.17119,3153.4,3153.2,0.8328]
[1731794690663,4.47449078,3153.7,3153.2,0.8328]
[1731794691207,4.47449078,3153.7,3153.2,4.00415]
[1731794691208,0.55,3153.7,3153.2,4.00415]
[1731794691407,3.72089,3153.7,3153.2,4.00415]
[1731794691651,3.72089,3153.7,3153.2,0.8328]
[1731794693651,0.55,3153.7,3153.2,4.00417]
[1731794694112,3.47078,3153.8,3153.3,3.17124]
[1731794694113,3.17078,3153.8,3153.3,3.17124]
[1731794694464,3.17078,3153.8,3153.4,0.8314]
[1731794695210,3.0,3154.2,3153.4,0.8314]
[1731794695211,3.17042,3154.2,3153.4,0.8314]
[1731794695408,0.55,3154.1,3153.6,0.8314]
[1731794695812,3.72048,3154.1,3153.6,0.8314]
[1731794696013,0.55,3154.1,3153.6,4.00235]
[1731794697157,3.72047,3154.1,3153.6,0.8314]
[1731794697356,3.17058,3154.0,3153.6,0.8314]
[1731794697517,4.47416078,3154.0,3153.6,0.8314]
[1731794697716,0.55,3154.1,3153.6,0.8314]
[1731794698165,1.30358078,3154.0,3153.6,0.8314]
[1731794700691,0.55,3154.3,3153.8,0.805]
[1731794700842,0.55,3154.3,3153.8,3.97577]
[1731794701044,3.72034,3154.3,3153.8,0.805]
[1731794701345,1.30358078,3154.2,3153.8,0.805]
[1731794702162,3.72034,3154.3,3153.8,0.805]
[1731794703695,3.1704,3154.2,3153.8,0.805]
[1731794703847,3.72034,3154.3,3153.8,0.805]
[1731794704044,3.17038,3154.2,3153.8,0.805]
[1731794705242,3.17038,3154.2,3153.6,3.17096]
[1731794705243,3.17097,3153.6,3152.9,3.66771142]
[1731794705478,3.17097,3153.6,3153.3,0.8191]
[1731794705479,1.30358078,3153.5,3153.3,0.8191]
[1731794705681,3.17097,3153.6,3153.3,0.8191]
[1731794705682,3.17118,3153.4,3153.3,0.8191]
[1731794705840,2.08388078,3153.7,3153.3,0.8191]
[1731794706250,3.17125,3153.4,3153.1,0.8191]
[1731794707178,2.08388078,3153.7,3153.1,0.8191]
[1731794707179,3.17128,3153.3,3153.1,0.8191]
[1731794708688,3.17112,3153.5,3153.1,0.8191]
[1731794708991,3.17128,3153.3,3153.1,0.8191]
[1731794711268,3.17138,3153.2,3153.1,0.8191]
[1731794712097,3.17119,3153.4,3153.1,0.8191]
[1731794712995,3.1713,3153.3,3153.1,0.8191]
[1731794713221,3.17138,3153.2,3152.9,0.49604142]
[1731794713426,3.17138,3153.2,3152.7,0.7874]
[1731794713914,3.17149,3153.1,3152.7,0.7874]
[1731794714277,3.1716,3153.0,3152.7,0.7874]
[1731794714510,3.17138,3153.2,3152.7,0.7874]
[1731794715326,3.17148,3153.1,3152.7,0.7874]
[1731794717826,2.09708078,3153.5,3152.7,0.7874]
[1731794717827,3.17132,3153.3,3152.7,0.7874]
[1731794718125,3.17147,3153.2,3152.7,0.7874]
[1731794718899,3.17067,3153.9,3153.2,0.7941]
[1731794719209,1.30358078,3154.0,3153.2,0.7941]
[1731794719524,3.17094,3153.7,3153.2,3.96547]
[1731794720191,3.17094,3153.7,3153.2,0.7941]
[1731794720616,3.17067,3153.9,3153.2,3.17129]
[1731794720830,3.17049,3154.1,3153.2,3.17129]
[1731794720831,3.17059,3154.0,3153.4,3.17116]
[1731794721059,3.17059,3154.0,3153.5,0.7941]
[1731794722402,3.17048,3154.1,3153.5,0.7941]
[1731794722607,0.55,3154.2,3153.6,3.1709]
[1731794722802,0.55,3154.2,3153.7,0.7941]
[1731794723041,0.55,3154.2,3153.8,0.7941]
[1731794723429,3.1701,3154.5,3153.9,3.17067]
[1731794723619,3.1701,3154.5,3154.0,0.7941]
[1731794723838,3.1703,3154.3,3154.0,0.7941]
[1731794724409,4.47369078,3154.5,3154.0,0.7941]
[1731794724609,3.17033,3154.3,3154.0,0.7941]
[1731794724909,3.17036,3154.3,3154.0,0.7941]
[1731794729148,4.47369078,3154.5,3154.0,0.7941]
[1731794729358,3.72017,3154.4,3154.0,0.7941]
[1731794729510,3.17035,3154.3,3154.0,0.7941]
[1731794730535,3.17043,3154.2,3154.0,0.7941]
[1731794732363,3.22954176,3154.1,3154.0,0.7941]
[1731794732567,3.22954176,3154.1,3153.3,3.17124]
[1731794732568,3.17071,3153.9,3153.4,0.7802]
[1731794733073,0.0591129,3153.8,3153.4,0.7802]
[1731794733849,3.2299129,3153.8,3153.4,0.7802]
[1731794734679,3.17089,3153.7,3153.4,0.7802]
[1731794734972,3.22994023,3153.7,3153.4,0.7802]
[1731794736778,0.05905023,3153.7,3153.4,0.7802]
[1731794737300,0.05903052,3153.6,3153.4,0.7802]
[1731794737451,3.17071,3153.9,3153.4,0.7802]
[1731794737798,3.22984993,3153.8,3153.4,0.7802]
[1731794739176,0.05906993,3153.8,3153.4,0.7802]
[1731794739483,3.17088,3153.7,3153.4,0.7802]
[1731794739686,3.22993023,3153.7,3153.4,0.7802]
[1731794740637,0.05905023,3153.7,3153.4,0.7802]
[1731794740936,3.17077,3153.8,3153.4,0.7802]
[1731794741136,0.05708782,3153.6,3153.4,0.7802]
[1731794741440,0.05706812,3153.5,3153.4,0.7802]
[1731794741666,3.17077,3153.8,3153.4,0.7802]
[1731794741939,0.05710753,3153.7,3153.4,0.7802]
[1731794742186,3.17077,3153.8,3153.4,0.7802]
[1731794742781,0.05710753,3153.7,3153.4,0.7802]
[1731794742962,0.05710753,3153.7,3153.4,3.95137]
[1731794743172,3.17058,3154.0,3153.4,3.95137]
[1731794743460,3.17058,3154.0,3153.5,0.7669]
[1731794743461,0.05708782,3153.6,3153.5,0.7669]
[1731794743678,3.17063,3154.0,3153.5,0.7669]
[1731794743850,0.05708782,3153.6,3153.5,0.7669]
[1731794744051,3.17068,3153.9,3153.5,0.7669]
[1731794744383,0.05712723,3153.8,3153.5,0.7669]
[1731794745133,3.17109,3153.5,3152.9,0.7965]
[1731794745385,3.17108,3153.5,3152.9,3.96817]
[1731794745637,3.17108,3153.5,3152.9,0.7965]
[1731794745638,3.22823394,3153.4,3152.9,0.7965]
[1731794746279,3.1713,3153.3,3152.9,0.7965]
[1731794746587,3.22641783,3153.3,3152.9,0.7965]
[1731794747053,3.17143,3153.2,3152.9,0.7965]
[1731794747279,0.0550784,3153.1,3152.9,0.7965]
[1731794747506,3.17126,3153.4,3152.9,0.7965]
[1731794747814,0.05505869,3153.0,3152.9,0.7965]
[1731794747996,3.17126,3153.4,3152.9,3.96818]
[1731794748162,0.05505869,3153.0,3152.9,3.96818]
[1731794748368,3.72088,3153.7,3153.1,3.17144]
[1731794748617,3.17098,3153.6,3153.1,3.17144]
[1731794750179,0.05512859,3153.5,3153.1,3.17144]
[1731794751970,0.05512859,3153.5,3153.2,0.7965]
[1731794753736,3.17084,3153.8,3153.2,3.96787]
[1731794753877,0.05507912,3153.4,3153.2,3.96787]
[1731794754222,3.17084,3153.8,3153.2,3.96787]
[1731794754763,0.05514817,3153.7,3153.3,3.17126]
[1731794755055,3.72078,3153.8,3153.3,3.17126]
[1731794755343,0.05515918,3153.7,3153.3,3.17126]
[1731794755554,3.72078,3153.8,3153.3,3.17126]
[1731794755845,0.05513948,3153.6,3153.3,3.17126]
[1731794756048,0.05515918,3153.7,3153.5,0.7965]
[1731794756354,3.17063,3154.0,3153.5,0.7965]
[1731794756507,0.05515932,3153.6,3153.5,0.7965]
[1731794756708,3.17063,3154.0,3153.5,0.7965]
[1731794757008,0.05515932,3153.6,3153.5,0.7965]
[1731794757202,3.17063,3154.0,3153.5,0.7965]
[1731794757405,0.05515932,3153.6,3153.5,0.7965]
[1731794757822,3.17063,3154.0,3153.5,0.7965]
[1731794758051,0.05515932,3153.6,3153.5,0.7965]
[1731794758247,0.55,3154.0,3153.5,0.7965]
[1731794758402,0.05515932,3153.6,3153.5,0.7965]
[1731794758605,0.55,3154.0,3153.5,0.7965]
[1731794758816,0.05515932,3153.6,3153.5,0.7965]
[1731794759306,0.05515932,3153.6,3153.5,3.96757]
[1731794759504,0.55,3154.0,3153.5,3.96757]
[1731794759705,0.05515932,3153.6,3153.5,0.7965]
[1731794759950,3.72065,3154.0,3153.5,0.7965]
[1731794760252,0.05515932,3153.6,3153.5,0.7965]
[1731794760663,3.72065,3154.0,3153.5,0.7965]
[1731794760664,3.72058,3154.0,3153.5,3.96756]
[1731794761153,0.05521843,3153.9,3153.5,3.96756]
[1731794762010,0.05521843,3153.9,3153.5,0.7965]
[1731794764276,3.22588843,3153.9,3153.5,0.7965]
[1731794764472,3.92052927,3153.9,3153.5,0.7965]
[1731794769131,3.17079,3153.8,3153.5,0.7965]
[1731794769276,0.8181,3153.8,3153.0,0.7553]
[1731794769477,3.17114,3153.5,3153.0,0.7553]
[1731794769929,0.0551276,3153.4,3153.0,0.7553]
[1731794770548,0.0551276,3153.4,3153.0,3.92687]
[1731794770757,0.0551276,3153.4,3153.0,3.92682]
[1731794771072,3.17097,3153.7,3153.1,3.17139]
[1731794771279,0.05507483,3153.3,3153.1,3.17139]
[1731794771480,3.17097,3153.7,3153.1,3.17139]
[1731794771642,0.05505512,3153.2,3153.1,3.17139]
[1731794771846,0.05505512,3153.2,3153.0,0.7553]
[1731794771847,3.98896,3153.8,3153.2,3.17134]
[1731794772243,0.05515366,3153.7,3153.2,3.17134]
[1731794772657,0.05515366,3153.7,3153.3,0.7553]
[1731794772970,3.17109,3153.5,3153.0,3.17151]
[1731794773480,0.05509345,3153.4,3153.0,3.17151]
[1731794774483,0.05509345,3153.4,3153.1,3.17147]
[1731794774985,0.05509345,3153.4,3152.9,0.7553]
[1731794774986,0.05506384,3153.3,3152.9,0.7553]
[1731794775141,3.98908,3153.6,3152.9,3.92692]
[1731794775499,0.05504413,3153.2,3152.9,3.92692]
[1731794775698,3.17113,3153.5,3152.9,3.92692]
[1731794775844,3.22623326,3153.5,3152.9,3.92692]
[1731794776187,3.17118,3153.4,3152.9,3.92692]
[1731794776402,0.05508355,3153.4,3152.9,3.92692]
[1731794776693,0.05508355,3153.4,3153.0,3.17157]
[1731794776896,0.05508355,3153.4,3152.9,3.92692]
[1731794777385,0.05508355,3153.4,3152.9,3.92691]
[1731794778383,0.8181,3153.2,3152.7,4.42328433]
[1731794778849,0.05501449,3153.1,3152.7,4.42328433]
[1731794779050,3.98948,3153.2,3152.7,4.42328433]
[1731794779275,0.8181,3153.2,3152.7,4.42328433]
[1731794779474,7.10619,3153.5,3152.8,3.17178]
[1731794779787,7.94716708,3153.5,3152.8,3.17178]
[1731794779950,0.05507362,3153.4,3152.8,3.17178]
[1731794780374,0.05507362,3153.4,3153.1,3.17148]
[1731794780575,0.05507362,3153.4,3153.1,3.99088]
[1731794785502,0.05507362,3153.4,3153.2,3.17137]
[1731794785911,3.94738,3153.7,3153.2,3.17137]
[1731794786209,4.47247608,3153.7,3153.2,3.17137]
[1731794786367,0.05511743,3153.6,3153.2,3.17137]
[1731794788811,0.05511743,3153.6,3153.5,3.17107]
[1731794789019,3.7765,3154.1,3153.6,3.17094]
[1731794791965,3.7765,3154.1,3153.4,3.95327]
[1731794791966,3.17058,3154.0,3153.5,3.17107]
[1731794792307,0.694692,3154.0,3153.5,3.17107]
[1731794795176,0.05521953,3153.9,3153.5,3.17107]
[1731794795576,6.94705,3154.1,3153.5,3.17107]
[1731794795810,0.05519983,3153.8,3153.5,3.17107]
[1731794796024,6.94705,3154.1,3153.5,3.17107]
[1731794796192,0.05518012,3153.7,3153.5,3.17107]
[1731794796523,6.94705,3154.1,3153.5,3.17107]
[1731794796703,0.05516042,3153.6,3153.5,3.17107]
[1731794796870,6.94705,3154.1,3153.4,3.95327]
[1731794796871,6.94705,3154.1,3153.6,3.17097]
[1731794798502,3.94705,3154.1,3153.6,3.17097]
[1731794798710,4.47211308,3154.1,3153.6,3.17097]
[1731794802628,3.1706,3154.0,3153.4,3.95321]
[1731794802921,4.47211308,3154.1,3153.5,3.17106]
[1731794803225,3.94705,3154.1,3153.6,3.17097]
[1731794804332,3.94705,3154.1,3153.4,3.95321]
[1731794804523,3.94705,3154.1,3153.4,3.95319]
[1731794804821,3.94705,3154.1,3153.5,3.17101]
[1731794807181,3.94705,3154.1,3153.6,3.17093]
[1731794808528,0.7765,3154.1,3153.4,0.7821]
[1731794808701,0.55,3154.3,3153.7,3.17078]
[1731794808897,0.55,3154.3,3153.8,3.1707]
[1731794810299,0.0534829,3154.2,3153.8,3.1707]
[1731794810683,0.55,3154.3,3153.8,3.1707]
[1731794810885,0.05347312,3154.1,3153.8,3.1707]
[1731794811085,0.05349282,3154.2,3153.8,3.1707]
[1731794811395,0.55,3154.3,3153.8,3.1707]
[1731794811602,0.05347312,3154.1,3153.8,3.1707]
[1731794811804,0.55,3154.3,3153.8,3.1707]
[1731794812128,0.05345342,3154.0,3153.8,3.1707]
[1731794812447,0.05343482,3153.9,3153.8,3.1707]
[1731794812937,0.55,3154.3,3153.8,3.1707]
[1731794813447,0.05349392,3154.2,3153.8,3.1707]
[1731794813755,0.55,3154.3,3153.8,3.1707]
[1731794814029,0.05347422,3154.1,3153.8,3.1707]
[1731794814233,3.72031,3154.3,3153.8,3.1707]
[1731794814439,0.05345452,3154.0,3153.8,3.1707]
[1731794814583,3.72031,3154.3,3153.8,3.1707]
[1731794814790,0.05343482,3153.9,3153.8,3.1707]
[1731794815126,3.72031,3154.3,3153.8,3.1707]
[1731794815303,0.05343482,3153.9,3153.8,3.1707]
[1731794815506,3.72031,3154.3,3153.8,3.1707]
[1731794815712,0.05343482,3153.9,3153.8,3.1707]
[1731794815889,3.72031,3154.3,3153.8,3.1707]
[1731794816089,0.05343482,3153.9,3153.8,3.1707]
[1731794816338,3.72031,3154.3,3153.8,3.1707]
[1731794816490,0.05343482,3153.9,3153.8,3.1707]
[1731794816693,3.72031,3154.3,3153.8,3.1707]
[1731794817206,0.05349392,3154.2,3153.8,3.1707]
[1731794817408,3.72031,3154.3,3153.8,3.1707]
[1731794817605,0.05349736,3154.1,3153.8,3.1707]
[1731794817795,3.72031,3154.3,3153.8,3.1707]
[1731794817998,0.05347766,3154.0,3153.8,3.1707]
[1731794818342,3.72031,3154.3,3153.8,3.1707]
[1731794818509,0.05345795,3153.9,3153.8,3.1707]
[1731794818706,3.72031,3154.3,3153.8,3.1707]
[1731794818910,0.05345795,3153.9,3153.8,3.1707]
[1731794819249,0.05351705,3154.2,3153.8,3.1707]
[1731794819536,0.05345795,3153.9,3153.8,3.1707]
[1731794819750,0.55,3154.3,3153.9,3.1706]
[1731794820074,0.55,3154.3,3153.8,7.1524]
[1731794820227,0.55,3154.3,3153.8,3.9817]
[1731794821497,1.43421608,3154.3,3153.8,3.9817]
[1731794825002,1.43421608,3154.3,3153.8,3.98169]
[1731794825301,0.05351705,3154.2,3153.8,3.98169]
[1731794825557,0.05351705,3154.2,3154.0,3.17056]
[1731794825849,0.05355683,3154.1,3154.0,3.17056]
[1731794826004,0.55,3154.5,3154.0,3.17056]
[1731794826206,0.05355683,3154.1,3154.0,3.17056]
[1731794826437,0.7715,3154.6,3154.0,3.17056]
[1731794826635,0.05363892,3154.5,3154.0,3.17056]
[1731794826839,0.05363892,3154.5,3154.0,6.34105]
[1731794827257,0.05363892,3154.5,3154.1,3.17045]
[1731794828064,0.05363892,3154.5,3154.0,3.17049]
[1731794828261,0.05363892,3154.5,3154.0,6.341]
[1731794828473,0.05363892,3154.5,3154.0,3.17049]
[1731794828738,0.05363892,3154.5,3154.0,6.34099]
[1731794829538,0.05363892,3154.5,3154.0,3.17049]
[1731794829888,0.05363892,3154.5,3154.1,3.17045]
[1731794830971,0.05363892,3154.5,3154.0,3.17049]
[1731794831184,0.05363892,3154.5,3154.1,3.17044]
[1731794831466,0.05363892,3154.5,3154.0,3.17049]
[1731794831671,0.05363892,3154.5,3154.1,3.17047]
[1731794835568,0.05363892,3154.5,3154.1,3.17046]
[1731794836097,0.05363892,3154.5,3154.0,3.17049]
[1731794836599,0.05363892,3154.5,3153.8,0.811]
[1731794836762,0.05363892,3154.5,3153.9,3.17066]
[1731794836763,4.5273797,3154.5,3153.9,3.17066]
[1731794836968,4.07067789,3154.5,3153.9,3.16886183]
[1731794837480,0.90051789,3154.5,3154.0,3.17048]
[1731794837671,0.7715,3154.0,3152.7,2.82710429]
[1731794837882,5.24658078,3153.1,3152.1,3.17248]
[1731794838078,3.17179,3152.8,3152.3,0.49614708]
[1731794838274,4.47528078,3152.9,3152.3,0.49614708]
[1731794838509,0.05154305,3152.7,3152.3,0.49614708]
[1731794838689,0.05149888,3152.8,3152.3,0.49614708]
[1731794838889,0.05145945,3152.6,3152.3,0.49614708]
[1731794839103,0.05147916,3152.7,3152.3,0.49614708]
[1731794839305,0.05143973,3152.5,3152.3,0.49614708]
[1731794839519,3.17186,3152.8,3152.3,0.49614708]
[1731794839727,0.05142001,3152.4,3152.3,0.49614708]
[1731794840031,0.05133625,3152.4,3152.3,0.49614708]
[1731794840211,3.17182,3152.8,3152.3,0.49614708]
[1731794840383,0.05133625,3152.4,3152.3,0.49614708]
[1731794840584,3.17196,3152.7,3152.3,0.49614708]
[1731794840922,0.05133625,3152.4,3152.3,0.49614708]
[1731794841087,3.17201,3152.6,3152.3,0.49614708]
[1731794841290,0.05133625,3152.4,3152.3,0.49614708]
[1731794841569,3.17201,3152.6,3152.3,0.49614708]
[1731794841685,0.05133625,3152.4,3152.3,0.49614708]
[1731794841876,0.769,3152.5,3152.3,0.49614708]
[1731794842074,0.05133625,3152.4,3152.3,0.49614708]
[1731794842625,3.22351625,3152.4,3152.3,0.49614708]
[1731794842856,3.17231,3152.3,3151.7,4.02375]
[1731794843129,3.17246,3152.2,3151.7,1.34719753]
[1731794843281,3.17246,3152.2,3151.7,0.59629753]
[1731794843282,3.22373366,3152.2,3151.7,0.59629753]
[1731794843793,3.1726,3152.0,3151.7,0.59629753]
[1731794844213,0.84444368,3151.9,3151.7,0.59629753]
[1731794847570,4.01713368,3151.9,3151.7,0.59629753]
[1731794849174,3.17279,3151.8,3151.7,0.1]
[1731794849375,4.02214045,3151.8,3151.7,0.1]
[1731794849581,4.0731644,3151.8,3151.7,0.1]
[1731794850633,0.9003744,3151.8,3151.7,0.1]
[1731794850818,3.22381395,3151.8,3151.7,0.1]
[1731794851958,0.05102395,3151.8,3151.7,0.1]
[1731794853629,0.05102395,3151.8,3151.7,3.27289]
[1731794853828,3.17225,3152.4,3151.7,3.27289]
[1731794854065,0.05082988,3151.8,3151.7,3.27289]
[1731794854239,0.7934,3152.5,3152.0,3.17256]
[1731794854544,3.17199,3152.6,3152.0,3.17256]
[1731794854545,0.05094823,3152.4,3152.1,0.7682]
[1731794854764,0.05094823,3152.4,3152.1,3.94062]
[1731794855030,0.05097924,3152.3,3152.1,3.94062]
[1731794855263,3.96519,3152.8,3152.1,0.7682]
[1731794855575,0.05095952,3152.2,3152.1,0.7682]
[1731794855772,3.1722,3152.4,3151.8,3.94098]
[1731794856161,3.17205,3152.6,3151.9,3.17268]
[1731794856162,0.05102886,3152.3,3151.9,3.17268]
[1731794856483,3.17205,3152.6,3151.9,3.17268]
[1731794856676,0.05105874,3152.2,3151.9,3.17268]
[1731794856875,3.17205,3152.6,3152.0,3.17258]
[1731794857085,0.05103902,3152.1,3152.0,3.17258]
[1731794857253,3.17205,3152.6,3152.0,3.17258]
[1731794857453,0.0511135,3152.5,3152.0,3.17258]
[1731794858653,0.0511135,3152.5,3152.1,3.1724]
[1731794858834,3.96521,3152.8,3152.1,3.1724]
[1731794859179,0.396521,3152.7,3152.1,3.1724]
[1731794859688,3.61955724,3152.7,3152.0,3.17258]
[1731794859988,3.172,3152.6,3152.0,3.17258]
[1731794860495,0.05114093,3152.6,3152.1,3.17247]
[1731794867650,0.05114093,3152.6,3152.2,3.17238]
[1731794869448,0.7934,3152.8,3152.2,3.17238]
[1731794869665,0.05112785,3152.5,3152.2,3.17238]
[1731794869897,0.7934,3152.8,3152.2,3.17238]
[1731794870104,0.05110813,3152.4,3152.2,3.17238]
[1731794870249,0.7934,3152.8,3152.3,3.17228]
[1731794871061,3.1715,3153.1,3152.4,3.17217]
[1731794871261,3.9365,3153.1,3152.6,3.17197]
[1731794871577,4.947279,3153.1,3152.6,3.17197]
[1731794871949,0.765,3153.4,3152.6,0.06343656]
[1731794872167,3.93619,3153.4,3152.8,3.17172]
[1731794872654,0.765,3153.4,3152.8,3.17172]
[1731794872881,3.93618,3153.4,3152.8,3.17172]
[1731794874050,3.17128,3153.3,3152.8,3.17172]
[1731794874256,3.17128,3153.3,3152.7,3.17187]
[1731794874492,3.882019,3153.3,3152.7,3.17187]
[1731794876367,3.17139,3153.2,3152.7,3.17187]
[1731794880043,3.17139,3153.2,3152.6,3.17197]
[1731794880479,3.1715,3153.1,3152.6,3.17197]
[1731794880674,0.7576,3152.6,3152.1,3.17239]
[1731794880876,0.7576,3152.6,3151.9,6.17266]
[1731794880877,3.92961,3152.6,3151.9,3.17262]
[1731794881111,3.92961,3152.6,3152.0,3.17258]
[1731794882030,3.17219,3152.4,3151.8,3.97819]
[1731794882178,3.17216,3152.5,3151.9,3.1726]
[1731794882380,4.45290908,3152.6,3152.0,3.17253]
[1731794882578,0.7576,3153.6,3152.3,1.30358078]
[1731794882780,3.17125,3153.4,3152.8,3.1717]
[1731794883085,3.17129,3153.3,3152.8,3.1717]
[1731794883232,3.17125,3153.4,3152.6,3.17197]
[1731794883454,3.1715,3153.1,3152.5,3.17201]
[1731794883604,0.04954522,3153.0,3152.5,3.17201]
[1731794883816,0.04954522,3153.0,3152.4,3.97755]
[1731794884194,3.17184,3152.8,3152.1,3.97309]
[1731794884540,3.17226,3152.4,3151.7,4.07355]
[1731794885042,0.04945483,3152.3,3151.7,4.07355]
[1731794885256,0.04945483,3152.3,3151.7,4.07352]
[1731794885410,0.04945483,3152.3,3151.8,3.17276]
[1731794885609,0.04945483,3152.3,3152.0,3.17253]
[1731794885939,3.93723,3152.6,3151.7,0.9007]
[1731794885940,3.17227,3152.4,3151.7,0.9007]
[1731794886108,0.7652,3152.1,3151.7,0.1]
[1731794886436,0.04937572,3152.0,3151.7,0.1]
[1731794888043,3.22196572,3152.0,3151.7,0.1]
[1731794888452,0.04937572,3152.0,3151.7,0.1]
[1731794888793,3.22204572,3152.0,3151.7,0.1]
[1731794890020,0.04937572,3152.0,3151.7,0.1]
[1731794890852,3.22203572,3152.0,3151.7,0.1]
[1731794891221,3.17269,3151.9,3151.7,0.1]
[1731794891425,3.22198948,3151.9,3151.7,0.1]
[1731794892204,3.17279,3151.8,3151.7,0.1]
[1731794892409,4.6267477,3151.8,3151.7,0.1]
[1731794893159,3.98726975,3151.8,3151.7,0.1]
[1731794894755,0.04927975,3151.8,3151.7,0.1]
[1731794895076,3.17238,3152.2,3151.7,0.1]
[1731794895353,0.04888848,3151.8,3151.7,0.1]
[1731794895573,3.17238,3152.2,3151.7,0.1]
[1731794895713,0.04888848,3151.8,3151.7,0.1]
[1731794895913,3.17238,3152.2,3151.7,0.1]
[1731794896108,0.04888848,3151.8,3151.7,0.1]
[1731794896312,3.17238,3152.2,3151.7,0.1]
[1731794896556,0.04891065,3151.8,3151.7,0.1]
[1731794897161,3.17238,3152.2,3151.7,0.1]
[1731794897313,0.04891841,3151.8,3151.7,0.1]
[1731794897512,3.17238,3152.2,3151.7,0.1]
[1731794898009,0.04897759,3152.1,3151.7,0.1]
[1731794898419,0.04897759,3152.1,3151.7,3.27288]
[1731794900424,0.04897759,3152.1,3151.7,3.27281]
[1731794900640,0.7652,3152.4,3151.9,3.17262]
[1731794900838,0.0489922,3152.0,3151.9,3.17262]
[1731794901046,0.8143,3152.7,3152.0,3.17252]
[1731794901217,3.17199,3152.6,3152.0,3.17252]
[1731794903387,0.8143,3152.7,3152.0,3.17251]
[1731794903703,3.98621,3152.7,3152.1,3.1724]
[1731794903998,3.17201,3152.6,3152.1,3.1724]
[1731794904989,3.17201,3152.6,3151.9,3.9783]
[1731794905361,3.887823,3152.6,3151.9,3.9783]